fUST/lending_fUST_20250901
["ID","MTS","AMOUNT","RATE_DAILY","PERIOD"]
[382714826,1756717852821,-480.0,0.00014246,2]
[382714828,1756717852831,-762.85,0.00014246,2]
[382714830,1756717852841,-480.0,0.00014246,2]
[382714832,1756717852851,-796.89,0.00014246,2]
[382714835,1756717852861,-480.0,0.00014246,2]
[382714837,1756717852871,-480.0,0.00014246,2]
[382714839,1756717852881,-480.0,0.00014246,2]
[382714841,1756717852891,-480.0,0.00014246,2]
[382714843,1756717852901,-480.0,0.00014246,2]
[382714845,1756717852910,-480.0,0.00014246,2]
[382714847,1756717852920,-622.06,0.00014246,2]
[382714849,1756717852930,-480.0,0.00014246,2]
[382714851,1756717852939,-766.28,0.00014246,2]
[382714853,1756717852949,-486.23,0.00014246,2]
[382714855,1756717852959,-1643.89,0.00014246,2]
[382714857,1756717852969,-480.0,0.00014246,2]
[382714860,1756717852979,-480.0,0.00014246,2]
[382714862,1756717852989,-480.0,0.00014246,2]
[382714864,1756717852998,-480.0,0.00014246,2]
[382714866,1756717853008,-480.0,0.00014246,2]
[382714868,1756717853022,-480.0,0.00014246,2]
[382714870,1756717853032,-480.0,0.00014246,2]
[382714872,1756717853042,-480.0,0.00014246,2]
[382714874,1756717853052,-480.0,0.00014246,2]
[382714876,1756717853063,-480.0,0.00014246,2]
[382714878,1756717853072,-556.67,0.00014246,2]
[382714880,1756717853082,-662.21,0.00014246,2]
[382714882,1756717853095,-480.0,0.00014246,2]
[382714884,1756717853106,-4149.33,0.00014246,2]
[382714904,1756717853262,-563.58,0.00014246,2]
[382714906,1756717853292,-1223.38,0.00014246,2]
[382714908,1756717853302,-480.0,0.00014246,2]
[382714910,1756717853311,-480.0,0.00014246,2]
[382714912,1756717853321,-480.0,0.00014246,2]
[382714914,1756717853331,-480.0,0.00014246,2]
[382714916,1756717853341,-498.2,0.00014246,2]
[382714918,1756717853351,-817.64,0.00014246,2]
[382714920,1756717853360,-1610.67,0.00014246,2]
[382714922,1756717853370,-480.0,0.00014246,2]
[382714924,1756717853379,-480.0,0.00014246,2]
[382714926,1756717853389,-1436.14,0.00014246,2]
[382714928,1756717853398,-480.0,0.00014246,2]
[382714930,1756717853408,-1264.9,0.00014246,2]
[382714932,1756717853417,-549.18,0.00014246,2]
[382714934,1756717853427,-4399.02,0.00014246,2]
[382714936,1756717853435,-480.0,0.00014246,2]
[382714938,1756717853445,-958.63,0.00014246,2]
[382714940,1756717853455,-480.0,0.00014246,2]
[382714942,1756717853463,-480.0,0.00014246,2]
[382714944,1756717853473,-480.0,0.00014246,2]
[382714946,1756717853483,-510.41,0.00014246,2]
[382714948,1756717853493,-480.0,0.00014246,2]
[382714950,1756717853502,-480.0,0.00014246,2]
[382714952,1756717853512,-480.0,0.00014246,2]
[382714954,1756717853521,-1065.06,0.00014246,2]
[382714957,1756717853532,-568.59,0.00014246,2]
[382714959,1756717853542,-480.0,0.00014246,2]
[382714961,1756717853551,-480.0,0.00014246,2]
[382714963,1756717853561,-802.62,0.00014246,2]
[382714965,1756717853571,-482.12818552,0.00014246,2]
[382714967,1756717853580,-480.0,0.00014246,2]
[382714969,1756717853591,-655.27,0.00014246,2]
[382714971,1756717853600,-480.0,0.00014246,2]
[382714973,1756717853609,-480.0,0.00014246,2]
[382714975,1756717853619,-480.0,0.00014246,2]
[382714977,1756717853628,-480.0,0.00014246,2]
[382714979,1756717853637,-480.0,0.00014246,2]
[382714981,1756717853651,-584.22,0.00014246,2]
[382714983,1756717853660,-480.0,0.00014246,2]
[382714985,1756717853670,-1090.26,0.00014246,2]
[382714987,1756717853679,-482.78,0.00014246,2]
[382714989,1756717853688,-480.0,0.00014246,2]
[382714991,1756717853697,-1407.73,0.00014246,2]
[382714993,1756717853707,-480.0,0.00014246,2]
[382714995,1756717853716,-584.52,0.00014246,2]
[382714997,1756717853726,-480.0,0.00014246,2]
[382714999,1756717853736,-480.0,0.00014246,2]
[382715001,1756717853746,-480.0,0.00014246,2]
[382715003,1756717853755,-480.0,0.00014246,2]
[382715005,1756717853765,-2680.3,0.00014246,2]
[382715007,1756717853775,-480.0,0.00014246,2]
[382715009,1756717853784,-669.45,0.00014246,2]
[382715011,1756717853793,-4470.52,0.00014246,2]
[382715013,1756717853804,-480.0,0.00014246,2]
[382715015,1756717853813,-480.0,0.00014246,2]
[382715017,1756717853822,-769.48,0.00014246,2]
[382715020,1756717853832,-480.0,0.00014246,2]
[382715021,1756717853843,-480.0,0.00014246,2]
[382715024,1756717853852,-480.0,0.00014246,2]
[382715026,1756717853861,-480.0,0.00014246,2]
[382715028,1756717853871,-480.0,0.00014246,2]
[382715030,1756717853880,-480.0,0.00014246,2]
[382715032,1756717853890,-601.47997319,0.00014246,2]
[382715034,1756717853899,-1280.0,0.00014246,2]
[382715036,1756717853909,-674.48,0.00014246,2]
[382715038,1756717853918,-480.0,0.00014246,2]
[382715040,1756717853928,-480.0,0.00014246,2]
[382715042,1756717853937,-480.0,0.00014246,2]
[382715044,1756717853946,-480.0,0.00014246,2]
[382715046,1756717853956,-480.0,0.00014246,2]
[382715048,1756717853965,-480.0,0.00014246,2]
[382715050,1756717853974,-480.0,0.00014246,2]
[382715052,1756717853984,-877.56,0.00014246,2]
[382715054,1756717853993,-754.9,0.00014246,2]
[382715056,1756717854002,-738.0,0.00014246,2]
[382715058,1756717854011,-594.5,0.00014246,2]
[382715060,1756717854024,-480.0,0.00014246,2]
[382715062,1756717854033,-480.0,0.00014246,2]
[382715064,1756717854042,-480.0,0.00014246,2]
[382715066,1756717854052,-480.0,0.00014246,2]
[382715068,1756717854062,-608.66362371,0.00014246,2]
[382715070,1756717854071,-480.0,0.00014246,2]
[382715072,1756717854081,-983.63,0.00014246,2]
[382715074,1756717854092,-480.0,0.00014246,2]
[382715076,1756717854102,-480.0,0.00014246,2]
[382715078,1756717854111,-480.0,0.00014246,2]
[382715080,1756717854121,-626.25,0.00014246,2]
[382715082,1756717854130,-213.10241086,0.00014262,2]
[382715084,1756717854139,-480.0,0.00014277,2]
[382715086,1756717854149,-340.26875631,0.00014277,2]
[382715088,1756717854159,-289.43288125,0.00014277,2]
[382715090,1756717854168,-151.0,0.00014277,2]
[382715092,1756717854178,-151.0,0.00014277,2]
[382715094,1756717854187,-151.0,0.00014277,2]
[382715096,1756717854196,-151.0,0.00014277,2]
[382715098,1756717854206,-151.0,0.00014277,2]
[382715100,1756717854215,-197.03558623,0.00014277,2]
[382715102,1756717854224,-152.17108138,0.00014277,2]
[382715104,1756717854233,-355.55964706,0.00014277,2]
[382715106,1756717854245,-1422.23858823,0.00014277,2]
[382715108,1756717854254,-3200.03682352,0.00014277,2]
[382715110,1756717854263,-5683.26539856,0.00014277,2]
[382715112,1756717854273,-1586.82916082,0.00014277,2]
[382715114,1756717854282,-3570.36561185,0.00014277,2]
[382715116,1756717854291,-6340.96932664,0.00014277,2]
[382715118,1756717854301,-413.79575222,0.00014277,2]
[382715120,1756717854310,-161.67034745,0.00014277,2]
[382715122,1756717854319,-1361.07502523,0.00014277,2]
[382715124,1756717854328,-3062.41880676,0.00014277,2]
[382715126,1756717854338,-151.0,0.00014277,2]
[382715129,1756717854348,-277.2116924,0.00014277,2]
[382715131,1756717854357,-151.0,0.00014277,2]
[382715133,1756717854367,-151.0,0.00014277,2]
[382715135,1756717854376,-295.16553519,0.00014277,2]
[382715137,1756717854386,-151.0,0.00014277,2]
[382715139,1756717854395,-1653.52782586,0.00014277,2]
[382715141,1756717854404,-646.03470839,0.00014277,2]
[382715143,1756717854414,-500.0,0.00014277,2]
[382715145,1756717854424,-5438.8558008,0.00014277,2]
[382715147,1756717854433,-282.23432,0.00014277,2]
[382715149,1756717854442,-151.0,0.00014277,2]
[382715150,1756717854451,-151.0,0.00014277,2]
[382715152,1756717854460,-500.0,0.00014277,2]
[382715154,1756717854470,-289.474385,0.00014277,2]
[382715156,1756717854479,-538.818197,0.00014277,2]
[382715158,1756717854489,-538.818197,0.00014277,2]
[382715160,1756717854499,-538.818197,0.00014277,2]
[382715162,1756717854508,-2189.0,0.0001428,2]
[382715164,1756717854518,-925.0,0.00014293,2]
[382715167,1756717854527,-151.0,0.00014293,2]
[382715169,1756717854537,-2189.0,0.00014313,2]
[382715171,1756717854546,-151.0,0.00014316,2]
[382715173,1756717854555,-345.85901749,0.00014316,2]
[382715174,1756717854564,-1232.61402608,0.00014316,2]
[382715176,1756717854573,-2000.0,0.00014316,2]
[382715179,1756717854583,-2000.0,0.00014316,2]
[382715180,1756717854593,-2000.0,0.00014316,2]
[382715182,1756717854603,-925.0,0.00014326,2]
[382715184,1756717854612,-10510.83445037,0.00014334,2]
[382715186,1756717854621,-327.0,0.00014335,2]
[382715188,1756717854631,-327.0,0.00014335,2]
[382715190,1756717854640,-327.0,0.00014335,2]
[382715192,1756717854649,-327.0,0.00014335,2]
[382715194,1756717854658,-327.0,0.00014335,2]
[382715196,1756717854667,-281.29654822,0.00014335,2]
[382715198,1756717854677,-335.59175365,0.00014335,2]
[382715199,1756717854686,-1082.95069447,0.00014335,2]
[382715200,1756717854695,-1795.38179387,0.00014335,2]
[382715201,1756717854704,-1000.0,0.00014352,2]
[382715202,1756717854712,-925.0,0.00014421,2]
[382715203,1756717854722,-2189.0,0.00014426,2]
[382715204,1756717854731,-151.0,0.00014427,2]
[382715205,1756717854740,-480.0,0.00014452,2]
[382715206,1756717854748,-480.0,0.00014452,2]
[382715207,1756717854757,-480.0,0.00014452,2]
[382715208,1756717854766,-480.0,0.00014452,2]
[382715209,1756717854775,-480.0,0.00014452,2]
[382715210,1756717854784,-480.0,0.00014452,2]
[382715211,1756717854793,-378.84334787,0.00014452,2]
[382715212,1756717854802,-480.0,0.00014452,2]
[382715213,1756717854810,-480.0,0.00014452,2]
[382715215,1756717854819,-716.52,0.00014452,2]
[382715217,1756717854828,-480.0,0.00014452,2]
[382715219,1756717854838,-480.0,0.00014452,2]
[382715221,1756717854847,-480.0,0.00014452,2]
[382715223,1756717854857,-322.1758387,0.00014452,2]
[382715225,1756717854866,-480.0,0.00014452,2]
[382715227,1756717854876,-480.0,0.00014452,2]
[382715228,1756717854885,-480.0,0.00014452,2]
[382715231,1756717854895,-480.0,0.00014452,2]
[382715233,1756717854904,-661.5,0.00014452,2]
[382715234,1756717854913,-549.99,0.00014452,2]
[382715236,1756717854923,-608.98,0.00014452,2]
[382715238,1756717854933,-480.0,0.00014452,2]
[382715240,1756717854942,-480.0,0.00014452,2]
[382715242,1756717854951,-480.0,0.00014452,2]
[382715244,1756717854960,-731.16,0.00014452,2]
[382715246,1756717854970,-480.0,0.00014452,2]
[382715248,1756717854979,-151.0,0.00014452,2]
[382715250,1756717854988,-151.0,0.00014452,2]
[382715252,1756717854998,-480.0,0.00014452,2]
[382715254,1756717855008,-480.0,0.00014452,2]
[382715256,1756717855020,-497.18,0.00014452,2]
[382715258,1756717855030,-480.0,0.00014452,2]
[382715260,1756717855039,-480.0,0.00014452,2]
[382715262,1756717855050,-480.0,0.00014452,2]
[382715264,1756717855059,-480.0,0.00014452,2]
[382715266,1756717855070,-999.93,0.00014452,2]
[382715268,1756717855079,-553.7,0.00014452,2]
[382715270,1756717855090,-480.0,0.00014452,2]
[382715272,1756717855099,-480.0,0.00014452,2]
[382715274,1756717855109,-493.19,0.00014452,2]
[382715276,1756717855119,-480.0,0.00014452,2]
[382715278,1756717855128,-925.0,0.0001447,2]
[382715280,1756717855138,-480.0,0.0001452,2]
[382715282,1756717855148,-773.22,0.0001452,2]
[382715284,1756717855157,-480.0,0.0001452,2]
[382715286,1756717855167,-480.0,0.0001452,2]
[382715288,1756717855177,-480.0,0.0001452,2]
[382715290,1756717855186,-480.0,0.0001452,2]
[382715292,1756717855195,-747.83,0.0001452,2]
[382715294,1756717855205,-726.05,0.0001452,2]
[382715296,1756717855215,-480.0,0.0001452,2]
[382715298,1756717855225,-480.0,0.0001452,2]
[382715300,1756717855236,-1031.56,0.0001452,2]
[382715302,1756717855245,-480.0,0.0001452,2]
[382715304,1756717855255,-480.0,0.0001452,2]
[382715306,1756717855265,-480.0,0.0001452,2]
[382715308,1756717855274,-480.0,0.0001452,2]
[382715310,1756717855284,-480.0,0.0001452,2]
[382715312,1756717855293,-480.0,0.0001452,2]
[382715314,1756717855303,-480.0,0.0001452,2]
[382715316,1756717855312,-1141.16,0.0001452,2]
[382715318,1756717855321,-480.0,0.0001452,2]
[382715320,1756717855331,-480.0,0.0001452,2]
[382715322,1756717855341,-942.63,0.0001452,2]
[382715324,1756717855350,-480.0,0.0001452,2]
[382715326,1756717855360,-716.18,0.0001452,2]
[382715328,1756717855369,-480.0,0.0001452,2]
[382715330,1756717855378,-151.0,0.0001452,2]
[382715332,1756717855387,-480.0,0.0001452,2]
[382715334,1756717855397,-480.0,0.0001452,2]
[382715336,1756717855406,-480.0,0.0001452,2]
[382715338,1756717855416,-480.0,0.0001452,2]
[382715340,1756717855425,-480.0,0.0001452,2]
[382715342,1756717855435,-480.0,0.0001452,2]
[382715344,1756717855445,-480.0,0.0001452,2]
[382715346,1756717855454,-480.0,0.0001452,2]
[382715348,1756717855463,-630.15,0.0001452,2]
[382715350,1756717855472,-480.0,0.0001452,2]
[382715352,1756717855482,-480.0,0.0001452,2]
[382715354,1756717855491,-480.0,0.0001452,2]
[382715356,1756717855501,-480.0,0.0001452,2]
[382715358,1756717855510,-480.0,0.0001452,2]
[382715360,1756717855519,-480.0,0.0001452,2]
[382715367,1756717855571,-480.0,0.0001452,2]
[382715369,1756717855581,-480.0,0.0001452,2]
[382715371,1756717855590,-602.58,0.0001452,2]
[382715373,1756717855600,-959.77,0.0001452,2]
[382715375,1756717855609,-480.0,0.0001452,2]
[382715377,1756717855618,-480.0,0.0001452,2]
[382715379,1756717855627,-480.0,0.0001452,2]
[382715381,1756717855636,-480.0,0.0001452,2]
[382715382,1756717855646,-954.21,0.0001452,2]
[382715384,1756717855655,-480.0,0.0001452,2]
[382715386,1756717855665,-480.0,0.0001452,2]
[382715388,1756717855674,-797.02,0.0001452,2]
[382715390,1756717855684,-480.0,0.0001452,2]
[382715392,1756717855694,-895.61,0.0001452,2]
[382715394,1756717855703,-935.58,0.0001452,2]
[382715396,1756717855712,-480.0,0.0001452,2]
[382715398,1756717855721,-480.0,0.0001452,2]
[382715401,1756717855732,-481.52879775,0.0001452,2]
[382715402,1756717855744,-480.0,0.0001452,2]
[382715404,1756717855753,-480.0,0.0001452,2]
[382715406,1756717855762,-480.0,0.0001452,2]
[382715408,1756717855772,-480.0,0.0001452,2]
[382715410,1756717855781,-480.0,0.0001452,2]
[382715412,1756717855791,-480.0,0.0001452,2]
[382715414,1756717855800,-500.83,0.0001452,2]
[382715416,1756717855810,-480.0,0.0001452,2]
[382715418,1756717855819,-480.0,0.0001452,2]
[382715420,1756717855828,-776.62,0.0001452,2]
[382715422,1756717855838,-530.38,0.0001452,2]
[382715424,1756717855847,-484.72,0.0001452,2]
[382715426,1756717855857,-480.0,0.0001452,2]
[382715428,1756717855866,-480.0,0.0001452,2]
[382715430,1756717855875,-480.0,0.0001452,2]
[382715432,1756717855884,-480.0,0.0001452,2]
[382715434,1756717855894,-731.33,0.0001452,2]
[382715436,1756717855903,-480.0,0.0001452,2]
[382715438,1756717855915,-803.59,0.0001452,2]
[382715440,1756717855925,-480.0,0.0001452,2]
[382715442,1756717855934,-151.0,0.0001452,2]
[382715444,1756717855943,-527.75,0.0001452,2]
[382715446,1756717855952,-480.0,0.0001452,2]
[382715448,1756717855961,-512.71,0.0001452,2]
[382715450,1756717855971,-480.0,0.0001452,2]
[382715452,1756717855980,-480.0,0.0001452,2]
[382715454,1756717855989,-480.0,0.0001452,2]
[382715456,1756717855999,-480.0,0.0001452,2]
[382715458,1756717856009,-190.65818524,0.0001452,2]
[382715460,1756717856022,-480.0,0.0001452,2]
[382715462,1756717856032,-833.45,0.0001452,2]
[382715464,1756717856041,-480.0,0.0001452,2]
[382715466,1756717856050,-496.81,0.0001452,2]
[382715468,1756717856059,-480.0,0.0001452,2]
[382715470,1756717856069,-947.72,0.0001452,2]
[382715472,1756717856078,-480.0,0.0001452,2]
[382715474,1756717856089,-151.0,0.0001452,2]
[382715476,1756717856100,-864.63,0.0001452,2]
[382715478,1756717856111,-480.0,0.0001452,2]
[382715480,1756717856120,-480.0,0.0001452,2]
[382715482,1756717856130,-480.0,0.0001452,2]
[382715484,1756717856139,-151.0,0.0001452,2]
[382715486,1756717856148,-480.0,0.0001452,2]
[382715488,1756717856158,-480.0,0.0001452,2]
[382715490,1756717856168,-480.0,0.0001452,2]
[382715492,1756717856178,-480.0,0.0001452,2]
[382715494,1756717856188,-480.0,0.0001452,2]
[382715496,1756717856197,-480.0,0.0001452,2]
[382715498,1756717856206,-800.95,0.0001452,2]
[382715500,1756717856214,-480.0,0.0001452,2]
[382715502,1756717856223,-871.62,0.0001452,2]
[382715504,1756717856232,-480.0,0.0001452,2]
[382715506,1756717856241,-675.63,0.0001452,2]
[382715508,1756717856250,-620.08695432,0.0001452,2]
[382715510,1756717856258,-480.0,0.0001452,2]
[382715512,1756717856267,-480.0,0.0001452,2]
[382715514,1756717856278,-480.0,0.0001452,2]
[382715516,1756717856286,-480.0,0.0001452,2]
[382715518,1756717856296,-480.0,0.0001452,2]
[382715520,1756717856305,-550.41954453,0.0001452,2]
[382715522,1756717856314,-480.0,0.0001452,2]
[382715524,1756717856323,-834.54,0.0001452,2]
[382715526,1756717856332,-513.92,0.0001452,2]
[382715528,1756717856343,-480.0,0.0001452,2]
[382715530,1756717856352,-544.34,0.0001452,2]
[382715532,1756717856361,-480.0,0.0001452,2]
[382715534,1756717856369,-480.0,0.0001452,2]
[382715536,1756717856378,-669.48,0.0001452,2]
[382715538,1756717856387,-480.0,0.0001452,2]
[382715540,1756717856396,-1011.4,0.0001452,2]
[382715542,1756717856405,-1201.58,0.0001452,2]
[382715544,1756717856415,-480.0,0.0001452,2]
[382715546,1756717856423,-795.38,0.0001452,2]
[382715548,1756717856432,-713.66,0.0001452,2]
[382715550,1756717856441,-1008.21,0.0001452,2]
[382715552,1756717856450,-1270.37,0.0001452,2]
[382715554,1756717856459,-620.19,0.0001452,2]
[382715555,1756717856468,-480.0,0.0001452,2]
[382715557,1756717856477,-480.0,0.0001452,2]
[382715559,1756717856486,-481.71634681,0.0001452,2]
[382715561,1756717856495,-2966.11,0.0001452,2]
[382715563,1756717856505,-1042.18,0.0001452,2]
[382715565,1756717856514,-480.0,0.0001452,2]
[382715567,1756717856523,-480.0,0.0001452,2]
[382715569,1756717856532,-1154.03,0.0001452,2]
[382715571,1756717856542,-480.0,0.0001452,2]
[382715573,1756717856551,-627.58,0.0001452,2]
[382715575,1756717856560,-550.57,0.0001452,2]
[382715577,1756717856569,-480.0,0.0001452,2]
[382715579,1756717856579,-244.92250846,0.0001452,2]
[382715581,1756717856588,-653.62,0.0001452,2]
[382715583,1756717856597,-480.0,0.0001452,2]
[382715585,1756717856606,-2077.83,0.0001452,2]
[382715587,1756717856615,-480.0,0.0001452,2]
[382715589,1756717856624,-480.0,0.0001452,2]
[382715591,1756717856633,-762.85,0.0001452,2]
[382715593,1756717856642,-480.0,0.0001452,2]
[382715595,1756717856651,-796.89,0.0001452,2]
[382715597,1756717856660,-480.0,0.0001452,2]
[382715599,1756717856669,-480.0,0.0001452,2]
[382715601,1756717856678,-480.0,0.0001452,2]
[382715603,1756717856687,-480.0,0.0001452,2]
[382715605,1756717856696,-407.6513577,0.0001452,2]
[382715607,1756717856705,-622.06,0.0001452,2]
[382715609,1756717856714,-766.28,0.0001452,2]
[382715611,1756717856724,-1643.89,0.0001452,2]
[382715613,1756717856733,-486.23,0.0001452,2]
[382715615,1756717856743,-480.0,0.0001452,2]
[382715617,1756717856752,-480.0,0.0001452,2]
[382715619,1756717856761,-480.0,0.0001452,2]
[382715621,1756717856770,-480.0,0.0001452,2]
[382715623,1756717856779,-480.0,0.0001452,2]
[382715625,1756717856788,-480.0,0.0001452,2]
[382715627,1756717856797,-480.0,0.0001452,2]
[382715629,1756717856806,-480.0,0.0001452,2]
[382715631,1756717856815,-480.0,0.0001452,2]
[382715633,1756717856824,-556.67,0.0001452,2]
[382715635,1756717856833,-662.21,0.0001452,2]
[382715637,1756717856843,-480.0,0.0001452,2]
[382715639,1756717856851,-4149.33,0.0001452,2]
[382715640,1756717856861,-563.58,0.0001452,2]
[382715643,1756717856870,-1223.38,0.0001452,2]
[382715645,1756717856879,-480.0,0.0001452,2]
[382715646,1756717856889,-480.0,0.0001452,2]
[382715647,1756717856898,-480.0,0.0001452,2]
[382715648,1756717856907,-498.2,0.0001452,2]
[382715649,1756717856916,-817.64,0.0001452,2]
[382715650,1756717856925,-1610.67,0.0001452,2]
[382715651,1756717856935,-480.0,0.0001452,2]
[382715652,1756717856944,-1436.14,0.0001452,2]
[382715653,1756717856954,-480.0,0.0001452,2]
[382715654,1756717856963,-1264.9,0.0001452,2]
[382715655,1756717856972,-549.18,0.0001452,2]
[382715656,1756717856981,-4399.02,0.0001452,2]
[382715657,1756717856991,-480.0,0.0001452,2]
[382715658,1756717857000,-958.63,0.0001452,2]
[382715659,1756717857010,-480.0,0.0001452,2]
[382715660,1756717857027,-480.0,0.0001452,2]
[382715661,1756717857038,-510.41,0.0001452,2]
[382715662,1756717857048,-480.0,0.0001452,2]
[382715663,1756717857058,-460.19,0.0001452,2]
[382715664,1756717857068,-1065.06,0.0001452,2]
[382715665,1756717857078,-568.59,0.0001452,2]
[382715666,1756717857087,-480.0,0.0001452,2]
[382715667,1756717857097,-802.62,0.0001452,2]
[382715668,1756717857107,-480.0,0.0001452,2]
[382715669,1756717857116,-655.27,0.0001452,2]
[382715670,1756717857125,-480.0,0.0001452,2]
[382715671,1756717857135,-480.0,0.0001452,2]
[382715672,1756717857144,-482.62361852,0.0001452,2]
[382715673,1756717857154,-480.0,0.0001452,2]
[382715674,1756717857171,-480.0,0.0001452,2]
[382715675,1756717857180,-584.22,0.0001452,2]
[382715676,1756717857190,-480.0,0.0001452,2]
[382715677,1756717857199,-1090.26,0.0001452,2]
[382715678,1756717857209,-482.78,0.0001452,2]
[382715679,1756717857219,-1407.73,0.0001452,2]
[382715680,1756717857229,-480.0,0.0001452,2]
[382715682,1756717857238,-480.0,0.0001452,2]
[382715683,1756717857247,-584.52,0.0001452,2]
[382715685,1756717857257,-480.0,0.0001452,2]
[382715687,1756717857267,-480.0,0.0001452,2]
[382715689,1756717857277,-527.50644784,0.0001452,2]
[382715691,1756717857286,-480.0,0.0001452,2]
[382715693,1756717857295,-2680.3,0.0001452,2]
[382715695,1756717857305,-669.45,0.0001452,2]
[382715697,1756717857316,-4470.52,0.0001452,2]
[382715699,1756717857325,-480.0,0.0001452,2]
[382715701,1756717857335,-480.0,0.0001452,2]
[382715703,1756717857345,-769.48,0.0001452,2]
[382715705,1756717857355,-480.0,0.0001452,2]
[382715707,1756717857365,-480.0,0.0001452,2]
[382715709,1756717857375,-480.0,0.0001452,2]
[382715711,1756717857384,-286.71208656,0.0001452,2]
[382715713,1756717857393,-480.0,0.0001452,2]
[382715716,1756717857404,-480.0,0.0001452,2]
[382715718,1756717857413,-1280.0,0.0001452,2]
[382715719,1756717857423,-674.48,0.0001452,2]
[382715721,1756717857432,-480.0,0.0001452,2]
[382715723,1756717857442,-480.0,0.0001452,2]
[382715725,1756717857452,-480.0,0.0001452,2]
[382715727,1756717857461,-480.0,0.0001452,2]
[382715730,1756717857471,-480.0,0.0001452,2]
[382715732,1756717857482,-480.0,0.0001452,2]
[382715733,1756717857491,-480.0,0.0001452,2]
[382715736,1756717857501,-877.56,0.0001452,2]
[382715738,1756717857510,-754.9,0.0001452,2]
[382715740,1756717857520,-738.0,0.0001452,2]
[382715742,1756717857530,-594.5,0.0001452,2]
[382715744,1756717857539,-480.0,0.0001452,2]
[382715745,1756717857549,-480.0,0.0001452,2]
[382715748,1756717857559,-480.0,0.0001452,2]
[382715750,1756717857568,-983.63,0.0001452,2]
[382715752,1756717857578,-480.0,0.0001452,2]
[382715754,1756717857587,-480.0,0.0001452,2]
[382715756,1756717857598,-480.0,0.0001452,2]
[382715758,1756717857608,-626.25,0.0001452,2]
[382715760,1756717857617,-1000.0,0.00014521,2]
[382715762,1756717857627,-1006.11170552,0.00014521,2]
[382715764,1756717857637,-1000.0,0.00014521,2]
[382715766,1756717857646,-1000.0,0.00014521,2]
[382715768,1756717857656,-1000.0,0.00014521,2]
[382715770,1756717857665,-212.11611982,0.00014521,2]
[382715772,1756717857675,-1000.0,0.00014521,2]
[382715774,1756717857684,-1000.0,0.00014521,2]
[382715776,1756717857693,-1000.0,0.00014521,2]
[382715778,1756717857703,-1000.0,0.00014521,2]
[382715780,1756717857713,-501.46562406,0.00014521,2]
[382715782,1756717857723,-186.11519927,0.00014521,2]
[382715784,1756717857732,-1000.0,0.00014521,2]
[382715786,1756717857742,-164.89562748,0.00014521,2]
[382715788,1756717857751,-1000.0,0.00014521,2]
[382715790,1756717857761,-1000.0,0.00014521,2]
[382715792,1756717857771,-1000.0,0.00014521,2]
[382715794,1756717857782,-411.35121586,0.00014521,2]
[382715796,1756717857793,-714.91044673,0.00014521,2]
[382715798,1756717857803,-502.70008143,0.00014521,2]